[Event "December 12 Early 2023"]
[Site "https://www.chess.com"]
[Date "2023.12.12"]
[Round "4"]
[White "Goltsev, Dmitry"]
[Black "Federzoni, Enzo"]
[Result "1-0"]
[Board "87"]
[TimeControl "180+1"]
[WhiteFideId "24176710"]
[BlackFideId "2173301"]
[WhiteElo "2663"]
[BlackElo "2426"]
[WhiteTeam "RUS"]
[BlackTeam "BRA"]
[WhiteClock "0:00:35"]
[BlackClock "0:00:06"]

1. e4 {[%clk 0:02:59]}  c6 {[%clk 0:02:58]} 2. d4 {[%clk 0:02:59]}  d5 {[%clk 0:02:57]} 3. Nc3 {[%clk 0:02:59]}  dxe4 {[%clk 0:02:56]} 4. Nxe4 {[%clk 0:03:00]}  Nf6 {[%clk 0:02:57]} 5. Qe2 {[%clk 0:03:01]}  Qxd4 {[%clk 0:02:48]} 6. Nxf6+ {[%clk 0:03:00]}  Qxf6 {[%clk 0:02:48]} 7. Nf3 {[%clk 0:03:01]}  g6 {[%clk 0:02:37]} 8. c3 {[%clk 0:03:01]}  Bg7 {[%clk 0:02:36]} 9. Be3 {[%clk 0:03:02]}  O-O {[%clk 0:02:34]} 10. O-O-O {[%clk 0:03:02]}  a5 {[%clk 0:02:33]} 11. Bg5 {[%clk 0:03:02]}  Qe6 {[%clk 0:02:32]} 12. Qxe6 {[%clk 0:03:01]}  Bxe6 {[%clk 0:02:32]} 13. Kb1 {[%clk 0:02:55]}  Re8 {[%clk 0:02:27]} 14. Nd4 {[%clk 0:02:52]}  Bxd4 {[%clk 0:02:17]} 15. Rxd4 {[%clk 0:02:53]}  f6 {[%clk 0:02:16]} 16. Be3 {[%clk 0:02:52]}  Nd7 {[%clk 0:02:15]} 17. Be2 {[%clk 0:02:47]}  Bf5+ {[%clk 0:02:15]} 18. Kc1 {[%clk 0:02:45]}  e5 {[%clk 0:02:15]} 19. Rd6 {[%clk 0:02:44]}  Kf7 {[%clk 0:02:11]} 20. Rhd1 {[%clk 0:02:44]}  Ke7 {[%clk 0:02:08]} 21. g4 {[%clk 0:02:39]}  Be6 {[%clk 0:02:08]} 22. h3 {[%clk 0:02:30]}  Bd5 {[%clk 0:02:08]} 23. Rxd7+ {[%clk 0:02:30]}  Kxd7 {[%clk 0:02:09]} 24. c4 {[%clk 0:02:31]}  Ke6 {[%clk 0:02:04]} 25. cxd5+ {[%clk 0:02:30]}  cxd5 {[%clk 0:02:05]} 26. b3 {[%clk 0:02:28]}  d4 {[%clk 0:02:05]} 27. Bc4+ {[%clk 0:02:27]}  Kd6 {[%clk 0:02:03]} 28. a4 {[%clk 0:02:24]}  Kc5 {[%clk 0:01:39]} 29. Bd2 {[%clk 0:02:24]}  b6 {[%clk 0:01:37]} 30. Kc2 {[%clk 0:02:22]}  e4 {[%clk 0:01:37]} 31. Bc1 {[%clk 0:02:22]}  d3+ {[%clk 0:01:25]} 32. Kc3 {[%clk 0:02:20]}  Kd6 {[%clk 0:01:20]} 33. Be3 {[%clk 0:02:17]}  f5 {[%clk 0:01:06]} 34. Bxb6 {[%clk 0:02:14]}  f4 {[%clk 0:01:05]} 35. Bd4 {[%clk 0:02:08]}  g5 {[%clk 0:01:01]} 36. f3 {[%clk 0:02:08]}  exf3 {[%clk 0:00:54]} 37. Rxd3 {[%clk 0:02:07]}  Kc7 {[%clk 0:00:54]} 38. Rxf3 {[%clk 0:02:02]}  Rac8 {[%clk 0:00:37]} 39. Bf6 {[%clk 0:01:59]}  h6 {[%clk 0:00:37]} 40. Bg7 {[%clk 0:01:58]}  Kb7 {[%clk 0:00:36]} 41. Bxh6 {[%clk 0:01:57]}  Rc5 {[%clk 0:00:34]} 42. Bg7 {[%clk 0:01:56]}  Rc6 {[%clk 0:00:33]} 43. Bd4 {[%clk 0:01:51]}  Rd6 {[%clk 0:00:31]} 44. Bc5 {[%clk 0:01:42]}  Rd1 {[%clk 0:00:28]} 45. Rd3 {[%clk 0:01:22]}  Ree1 {[%clk 0:00:26]} 46. Rxd1 {[%clk 0:01:21]}  Rxd1 {[%clk 0:00:27]} 47. Be7 {[%clk 0:01:18]}  f3 {[%clk 0:00:27]} 48. Bxg5 {[%clk 0:01:17]}  f2 {[%clk 0:00:26]} 49. h4 {[%clk 0:01:15]}  f1=Q {[%clk 0:00:27]} 50. Bxf1 {[%clk 0:01:14]}  Rxf1 {[%clk 0:00:28]} 51. h5 {[%clk 0:01:13]}  Rg1 {[%clk 0:00:26]} 52. h6 {[%clk 0:01:13]}  Rxg4 {[%clk 0:00:25]} 53. Bf6 {[%clk 0:01:09]}  Rg3+ {[%clk 0:00:24]} 54. Kc4 {[%clk 0:01:10]}  Rh3 {[%clk 0:00:22]} 55. Bg7 {[%clk 0:01:10]}  Kc6 {[%clk 0:00:18]} 56. Bf8 {[%clk 0:00:49]}  Rh4+ {[%clk 0:00:17]} 57. Kc3 {[%clk 0:00:49]}  Kd5 {[%clk 0:00:17]} 58. Bg7 {[%clk 0:00:47]}  Rh3+ {[%clk 0:00:17]} 59. Kc2 {[%clk 0:00:47]}  Ke4 {[%clk 0:00:15]} 60. Kb2 {[%clk 0:00:45]}  Kd3 {[%clk 0:00:15]} 61. Ka3 {[%clk 0:00:45]}  Kc2 {[%clk 0:00:15]} 62. Ka2 {[%clk 0:00:44]}  Rh2 {[%clk 0:00:15]} 63. Bf8 {[%clk 0:00:40]}  Rh1 {[%clk 0:00:14]} 64. Bg7 {[%clk 0:00:36]}  Kc1 {[%clk 0:00:14]} 65. b4 {[%clk 0:00:35]}  axb4 {[%clk 0:00:12]} 66. Kb3 {[%clk 0:00:35]}  Rh4 {[%clk 0:00:12]} 67. a5 {[%clk 0:00:36]}  Kd2 {[%clk 0:00:07]} 68. a6 {[%clk 0:00:35]}  Kd3 {[%clk 0:00:06]} 69. a7 {[%clk 0:00:35]} 1-0

[Event "December 12 Early 2023"]
[Site "https://www.chess.com"]
[Date "2023.12.12"]
[Round "4"]
[White "Agibileg, Uurtsaikh"]
[Black "Zeneli, Klendi"]
[Result "1-0"]
[Board "89"]
[TimeControl "180+1"]
[WhiteFideId "4901606"]
[BlackFideId "4706609"]
[WhiteElo "2651"]
[BlackElo "2357"]
[WhiteTeam "MGL"]
[BlackTeam "ALB"]
[WhiteClock "0:02:11"]
[BlackClock "0:01:04"]

1. d4 {[%clk 0:02:59]}  d5 {[%clk 0:02:59]} 2. c4 {[%clk 0:02:58]}  e6 {[%clk 0:02:59]} 3. Nc3 {[%clk 0:02:58]}  c6 {[%clk 0:02:59]} 4. Nf3 {[%clk 0:02:58]}  dxc4 {[%clk 0:02:59]} 5. e3 {[%clk 0:02:56]}  b5 {[%clk 0:02:59]} 6. a4 {[%clk 0:02:55]}  Bb4 {[%clk 0:02:59]} 7. axb5 {[%clk 0:02:54]}  cxb5 {[%clk 0:02:58]} 8. Bd2 {[%clk 0:02:55]}  Qb6 {[%clk 0:02:49]} 9. Ne5 {[%clk 0:02:28]}  Bb7 {[%clk 0:02:35]} 10. b3 {[%clk 0:02:28]}  cxb3 {[%clk 0:01:59]} 11. Bxb5+ {[%clk 0:02:20]}  Bc6 {[%clk 0:01:55]} 12. Qxb3 {[%clk 0:02:13]}  Bxc3 {[%clk 0:01:41]} 13. Bxc6+ {[%clk 0:02:12]}  Nxc6 {[%clk 0:01:41]} 14. Qxb6 {[%clk 0:02:12]}  Bxd2+ {[%clk 0:01:30]} 15. Kxd2 {[%clk 0:02:12]}  axb6 {[%clk 0:01:06]} 16. Rxa8+ {[%clk 0:02:13]}  Ke7 {[%clk 0:01:04]} 17. Nxc6+ {[%clk 0:02:11]} 1-0

[Event "December 12 Early 2023"]
[Site "https://www.chess.com"]
[Date "2023.12.12"]
[Round "4"]
[White "Hercegovac, Neven"]
[Black "Boyer, Mahel"]
[Result "1-0"]
[Board "90"]
[TimeControl "180+1"]
[WhiteFideId "2839135"]
[BlackFideId "45102422"]
[WhiteElo "2350"]
[BlackElo "2650"]
[WhiteTeam "ITA"]
[BlackTeam "FRA"]
[WhiteClock "0:00:24"]
[BlackClock "0:00:00"]

1. d4 {[%clk 0:03:00]}  Nf6 {[%clk 0:02:49]} 2. Nc3 {[%clk 0:03:00]}  d5 {[%clk 0:02:47]} 3. Bf4 {[%clk 0:02:59]}  c6 {[%clk 0:02:45]} 4. e3 {[%clk 0:02:56]}  Bf5 {[%clk 0:02:45]} 5. f3 {[%clk 0:02:52]}  h5 {[%clk 0:02:44]} 6. Bd3 {[%clk 0:02:44]}  e6 {[%clk 0:02:44]} 7. Nge2 {[%clk 0:02:25]}  Bxd3 {[%clk 0:02:26]} 8. cxd3 {[%clk 0:02:26]}  Be7 {[%clk 0:02:20]} 9. e4 {[%clk 0:02:23]}  Na6 {[%clk 0:02:14]} 10. Rc1 {[%clk 0:02:16]}  O-O {[%clk 0:01:49]} 11. O-O {[%clk 0:02:11]}  h4 {[%clk 0:01:44]} 12. Qe1 {[%clk 0:02:01]}  Nh5 {[%clk 0:01:43]} 13. Be3 {[%clk 0:01:58]}  Nb4 {[%clk 0:01:43]} 14. Qd2 {[%clk 0:01:55]}  a5 {[%clk 0:01:41]} 15. a3 {[%clk 0:01:55]}  Na6 {[%clk 0:01:41]} 16. e5 {[%clk 0:01:50]}  f5 {[%clk 0:01:24]} 17. f4 {[%clk 0:01:34]}  Kf7 {[%clk 0:01:03]} 18. Na4 {[%clk 0:01:30]}  Rh8 {[%clk 0:01:03]} 19. Nc5 {[%clk 0:01:29]}  Nxc5 {[%clk 0:00:20]} 20. dxc5 {[%clk 0:01:30]}  d4 {[%clk 0:00:19]} 21. Nxd4 {[%clk 0:01:27]}  Qd5 {[%clk 0:00:19]} 22. Nf3 {[%clk 0:01:23]}  Rad8 {[%clk 0:00:19]} 23. d4 {[%clk 0:01:23]}  a4 {[%clk 0:00:18]} 24. Qb4 {[%clk 0:01:22]}  Qe4 {[%clk 0:00:14]} 25. Rce1 {[%clk 0:01:10]}  Rd7 {[%clk 0:00:07]} 26. Nd2 {[%clk 0:00:48]}  Qc2 {[%clk 0:00:06]} 27. Nc4 {[%clk 0:00:42]}  Ng3 {[%clk 0:00:01]} 28. Rf2 {[%clk 0:00:39]}  Qd3 {[%clk 0:00:01]} 29. Rd2 {[%clk 0:00:31]}  Qe4 {[%clk 0:00:01]} 30. hxg3 {[%clk 0:00:28]}  hxg3 {[%clk 0:00:01]} 31. Qxa4 {[%clk 0:00:23]}  Rdd8 {[%clk 0:00:00]} 32. Qc2 {[%clk 0:00:24]} 1-0

[Event "December 12 Early 2023"]
[Site "https://www.chess.com"]
[Date "2023.12.12"]
[Round "4"]
[White "Storn, Justin"]
[Black "Omelja, Artem"]
[Result "0-1"]
[Board "91"]
[TimeControl "180+1"]
[WhiteFideId "30922720"]
[BlackFideId "14119846"]
[WhiteElo "2340"]
[BlackElo "2644"]
[WhiteTeam "USA"]
[BlackTeam "UKR"]
[WhiteClock "0:00:08"]
[BlackClock "0:00:10"]

1. Nf3 {[%clk 0:02:41]}  d5 {[%clk 0:02:59]} 2. g3 {[%clk 0:02:42]}  c6 {[%clk 0:02:59]} 3. Bg2 {[%clk 0:02:42]}  Nf6 {[%clk 0:03:00]} 4. O-O {[%clk 0:02:42]}  Bf5 {[%clk 0:03:00]} 5. d4 {[%clk 0:02:42]}  e6 {[%clk 0:03:01]} 6. Nh4 {[%clk 0:02:42]}  Bg4 {[%clk 0:03:01]} 7. h3 {[%clk 0:02:42]}  Bh5 {[%clk 0:03:01]} 8. g4 {[%clk 0:02:41]}  Ne4 {[%clk 0:02:46]} 9. Nf3 {[%clk 0:02:29]}  Bg6 {[%clk 0:02:46]} 10. Ne5 {[%clk 0:02:29]}  Nd7 {[%clk 0:02:46]} 11. Nxg6 {[%clk 0:02:28]}  hxg6 {[%clk 0:02:47]} 12. Bf4 {[%clk 0:02:14]}  Ndf6 {[%clk 0:02:45]} 13. Nd2 {[%clk 0:01:56]}  Bd6 {[%clk 0:02:29]} 14. Bxd6 {[%clk 0:01:52]}  Qxd6 {[%clk 0:02:30]} 15. Nf3 {[%clk 0:01:41]}  O-O-O {[%clk 0:02:06]} 16. Ne5 {[%clk 0:00:57]}  Qc7 {[%clk 0:02:05]} 17. Qd3 {[%clk 0:00:56]}  Rh4 {[%clk 0:01:20]} 18. f4 {[%clk 0:00:53]}  Rdh8 {[%clk 0:01:09]} 19. Rf3 {[%clk 0:00:53]}  Nd6 {[%clk 0:01:04]} 20. b3 {[%clk 0:00:48]}  Nfe4 {[%clk 0:01:04]} 21. c4 {[%clk 0:00:46]}  Qe7 {[%clk 0:00:36]} 22. c5 {[%clk 0:00:45]}  Ne8 {[%clk 0:00:32]} 23. Re3 {[%clk 0:00:38]}  N8f6 {[%clk 0:00:30]} 24. b4 {[%clk 0:00:31]}  Nd7 {[%clk 0:00:19]} 25. Nf3 {[%clk 0:00:12]}  Rxh3 {[%clk 0:00:14]} 26. Bxh3 {[%clk 0:00:12]}  Rxh3 {[%clk 0:00:15]} 27. Ng5 {[%clk 0:00:12]}  Rh4 {[%clk 0:00:09]} 28. Nxe4 {[%clk 0:00:11]}  dxe4 {[%clk 0:00:10]} 29. Qxe4 {[%clk 0:00:10]}  Rxg4+ {[%clk 0:00:10]} 30. Kf2 {[%clk 0:00:11]}  Qh4+ {[%clk 0:00:10]} 31. Kf1 {[%clk 0:00:10]}  Rxf4+ {[%clk 0:00:10]} 32. Qxf4 {[%clk 0:00:10]}  Qxf4+ {[%clk 0:00:11]} 33. Rf3 {[%clk 0:00:10]}  Qxd4 {[%clk 0:00:11]} 34. Rxf7 {[%clk 0:00:08]}  Qxa1+ {[%clk 0:00:10]} 0-1

[Event "December 12 Early 2023"]
[Site "https://www.chess.com"]
[Date "2023.12.12"]
[Round "4"]
[White "Renjith, Sravan"]
[Black "Ernst, Luca"]
[Result "1-0"]
[Board "93"]
[TimeControl "180+1"]
[WhiteFideId "4306783"]
[BlackFideId "45117055"]
[WhiteElo "2641"]
[BlackElo "2316"]
[WhiteTeam "NZL"]
[BlackTeam "FRA"]
[WhiteClock "0:00:05"]
[BlackClock "0:00:00"]

1. e4 {[%clk 0:03:00]}  e5 {[%clk 0:02:59]} 2. Nf3 {[%clk 0:03:00]}  Nc6 {[%clk 0:02:59]} 3. Nc3 {[%clk 0:03:00]}  Nf6 {[%clk 0:02:59]} 4. d4 {[%clk 0:03:00]}  exd4 {[%clk 0:02:58]} 5. Nxd4 {[%clk 0:03:01]}  Bb4 {[%clk 0:02:58]} 6. Nxc6 {[%clk 0:03:00]}  bxc6 {[%clk 0:02:57]} 7. Bd3 {[%clk 0:03:00]}  O-O {[%clk 0:02:52]} 8. O-O {[%clk 0:02:59]}  Re8 {[%clk 0:02:52]} 9. Qf3 {[%clk 0:02:52]}  h6 {[%clk 0:02:36]} 10. h3 {[%clk 0:02:45]}  d5 {[%clk 0:02:36]} 11. exd5 {[%clk 0:02:46]}  cxd5 {[%clk 0:02:37]} 12. Ne2 {[%clk 0:02:41]}  c5 {[%clk 0:02:20]} 13. c3 {[%clk 0:02:37]}  Ba5 {[%clk 0:02:18]} 14. Rd1 {[%clk 0:02:34]}  Bb7 {[%clk 0:02:14]} 15. Ng3 {[%clk 0:02:29]}  Qd7 {[%clk 0:01:24]} 16. Nf5 {[%clk 0:01:00]}  d4 {[%clk 0:00:14]} 17. Qg3 {[%clk 0:00:47]}  Nh5 {[%clk 0:00:12]} 18. Qg4 {[%clk 0:00:47]}  Qc6 {[%clk 0:00:11]} 19. Nxh6+ {[%clk 0:00:19]}  Kf8 {[%clk 0:00:11]} 20. Nf5 {[%clk 0:00:18]}  Re5 {[%clk 0:00:04]} 21. cxd4 {[%clk 0:00:13]}  cxd4 {[%clk 0:00:03]} 22. Nxd4 {[%clk 0:00:13]}  Qd5 {[%clk 0:00:02]} 23. Be3 {[%clk 0:00:11]}  Rae8 {[%clk 0:00:02]} 24. Nb3 {[%clk 0:00:09]}  Nf6 {[%clk 0:00:02]} 25. Bc5+ {[%clk 0:00:09]}  Kg8 {[%clk 0:00:00]} 26. Bf1 {[%clk 0:00:05]} 1-0

[Event "December 12 Early 2023"]
[Site "https://www.chess.com"]
[Date "2023.12.12"]
[Round "4"]
[White "Nechitaylo, Nikita"]
[Black "Skliarov, Viktor"]
[Result "0-1"]
[Board "95"]
[TimeControl "180+1"]
[WhiteFideId "34138161"]
[BlackFideId "14106736"]
[WhiteElo "2289"]
[BlackElo "2639"]
[WhiteTeam "UKR"]
[BlackTeam "UKR"]
[WhiteClock "0:00:01"]
[BlackClock "0:00:22"]

1. d4 {[%clk 0:03:00]}  Nf6 {[%clk 0:03:00]} 2. c4 {[%clk 0:03:01]}  e6 {[%clk 0:03:00]} 3. Nc3 {[%clk 0:03:00]}  Bb4 {[%clk 0:03:00]} 4. e3 {[%clk 0:02:57]}  b6 {[%clk 0:03:00]} 5. Ne2 {[%clk 0:02:48]}  Ne4 {[%clk 0:03:00]} 6. Qc2 {[%clk 0:02:36]}  Bb7 {[%clk 0:02:59]} 7. a3 {[%clk 0:02:34]}  Bxc3+ {[%clk 0:02:59]} 8. Nxc3 {[%clk 0:02:35]}  Nxc3 {[%clk 0:03:00]} 9. Qxc3 {[%clk 0:02:35]}  O-O {[%clk 0:03:00]} 10. b4 {[%clk 0:02:00]}  d6 {[%clk 0:02:58]} 11. Bb2 {[%clk 0:01:57]}  a5 {[%clk 0:02:57]} 12. d5 {[%clk 0:01:46]}  Qg5 {[%clk 0:02:46]} 13. h4 {[%clk 0:01:13]}  axb4 {[%clk 0:02:45]} 14. axb4 {[%clk 0:01:10]}  Rxa1+ {[%clk 0:02:44]} 15. Bxa1 {[%clk 0:01:11]}  Qg6 {[%clk 0:02:43]} 16. Bd3 {[%clk 0:00:46]}  Qxg2 {[%clk 0:02:33]} 17. Be4 {[%clk 0:00:46]}  Qg4 {[%clk 0:02:24]} 18. Bf3 {[%clk 0:00:14]}  Qg6 {[%clk 0:02:15]} 19. h5 {[%clk 0:00:14]}  Qh6 {[%clk 0:02:07]} 20. Rg1 {[%clk 0:00:14]}  e5 {[%clk 0:02:05]} 21. c5 {[%clk 0:00:10]}  bxc5 {[%clk 0:01:59]} 22. bxc5 {[%clk 0:00:11]}  Na6 {[%clk 0:01:59]} 23. c6 {[%clk 0:00:11]}  Bc8 {[%clk 0:01:57]} 24. Qa5 {[%clk 0:00:07]}  Qf6 {[%clk 0:01:15]} 25. Be2 {[%clk 0:00:08]}  Qf5 {[%clk 0:01:16]} 26. Kd2 {[%clk 0:00:02]}  Qxf2 {[%clk 0:01:03]} 27. Rf1 {[%clk 0:00:01]}  Qg2 {[%clk 0:00:56]} 28. h6 {[%clk 0:00:02]}  g6 {[%clk 0:00:53]} 29. Ke1 {[%clk 0:00:02]}  Qg3+ {[%clk 0:00:29]} 30. Kd1 {[%clk 0:00:03]}  Qxe3 {[%clk 0:00:25]} 31. Bxa6 {[%clk 0:00:02]}  Bxa6 {[%clk 0:00:23]} 32. Qxa6 {[%clk 0:00:03]}  Rb8 {[%clk 0:00:23]} 33. Qb7 {[%clk 0:00:01]}  Rxb7 {[%clk 0:00:22]} 34. cxb7 {[%clk 0:00:02]}  Qb3+ {[%clk 0:00:23]} 35. Kd2 {[%clk 0:00:02]}  Qxb7 {[%clk 0:00:23]} 36. Rc1 {[%clk 0:00:01]}  Qxd5+ {[%clk 0:00:23]} 37. Ke2 {[%clk 0:00:02]}  Qe4+ {[%clk 0:00:22]} 38. Kf2 {[%clk 0:00:01]}  Qf4+ {[%clk 0:00:22]} 0-1

[Event "December 12 Early 2023"]
[Site "https://www.chess.com"]
[Date "2023.12.12"]
[Round "4"]
[White "Baskakov, Egor"]
[Black "Estrada Nieto, Julian"]
[Result "1-0"]
[Board "102"]
[TimeControl "180+1"]
[WhiteFideId "24197866"]
[BlackFideId "5101018"]
[WhiteElo "2893"]
[BlackElo "2527"]
[WhiteTeam "RUS"]
[BlackTeam "ESP"]
[WhiteClock "0:01:08"]
[BlackClock "0:00:00"]

1. e4 {[%clk 0:03:00]}  e5 {[%clk 0:02:59]} 2. Nc3 {[%clk 0:03:00]}  Nf6 {[%clk 0:02:59]} 3. g3 {[%clk 0:03:01]}  d5 {[%clk 0:02:59]} 4. exd5 {[%clk 0:03:01]}  Nxd5 {[%clk 0:02:59]} 5. Bg2 {[%clk 0:03:02]}  Nxc3 {[%clk 0:03:00]} 6. bxc3 {[%clk 0:03:03]}  Nc6 {[%clk 0:03:00]} 7. d3 {[%clk 0:03:03]}  Bc5 {[%clk 0:03:00]} 8. Ne2 {[%clk 0:03:03]}  O-O {[%clk 0:03:01]} 9. O-O {[%clk 0:03:04]}  Be6 {[%clk 0:02:51]} 10. c4 {[%clk 0:03:03]}  Qd7 {[%clk 0:02:51]} 11. Be3 {[%clk 0:03:03]}  Bxe3 {[%clk 0:02:45]} 12. fxe3 {[%clk 0:03:04]}  Bh3 {[%clk 0:02:45]} 13. Bxh3 {[%clk 0:03:03]}  Qxh3 {[%clk 0:02:45]} 14. Nc3 {[%clk 0:03:03]}  Ne7 {[%clk 0:02:41]} 15. Rb1 {[%clk 0:03:00]}  b6 {[%clk 0:02:41]} 16. Qf3 {[%clk 0:03:01]}  c6 {[%clk 0:02:35]} 17. a4 {[%clk 0:02:57]}  Qe6 {[%clk 0:02:23]} 18. a5 {[%clk 0:02:45]}  Rfb8 {[%clk 0:02:19]} 19. axb6 {[%clk 0:02:41]}  axb6 {[%clk 0:02:19]} 20. Ra1 {[%clk 0:02:39]}  h6 {[%clk 0:02:16]} 21. Rfb1 {[%clk 0:02:36]}  Nc8 {[%clk 0:01:57]} 22. Kg2 {[%clk 0:02:26]}  f5 {[%clk 0:01:53]} 23. e4 {[%clk 0:02:21]}  Nd6 {[%clk 0:01:35]} 24. exf5 {[%clk 0:02:20]}  Nxf5 {[%clk 0:01:35]} 25. Rxa8 {[%clk 0:02:12]}  Rxa8 {[%clk 0:01:35]} 26. Rxb6 {[%clk 0:02:07]}  Nd4 {[%clk 0:01:35]} 27. Qe4 {[%clk 0:02:07]}  Qf6 {[%clk 0:01:23]} 28. Rb1 {[%clk 0:01:53]}  Rf8 {[%clk 0:01:21]} 29. Kh1 {[%clk 0:01:52]}  Qf2 {[%clk 0:01:15]} 30. Qg2 {[%clk 0:01:49]}  Qe3 {[%clk 0:01:06]} 31. Ne4 {[%clk 0:01:42]}  Kh7 {[%clk 0:00:46]} 32. g4 {[%clk 0:01:36]}  Ne6 {[%clk 0:00:45]} 33. g5 {[%clk 0:01:30]}  Nf4 {[%clk 0:00:43]} 34. Qg3 {[%clk 0:01:28]}  Qxg3 {[%clk 0:00:22]} 35. hxg3 {[%clk 0:01:28]}  Ne6 {[%clk 0:00:21]} 36. gxh6 {[%clk 0:01:25]}  Kxh6 {[%clk 0:00:22]} 37. Rb6 {[%clk 0:01:23]}  Nd4 {[%clk 0:00:18]} 38. c3 {[%clk 0:01:21]}  Ne2 {[%clk 0:00:18]} 39. Rxc6+ {[%clk 0:01:18]}  Kh5 {[%clk 0:00:18]} 40. Kg2 {[%clk 0:01:17]}  Ra8 {[%clk 0:00:15]} 41. Kf3 {[%clk 0:01:15]}  Ng1+ {[%clk 0:00:13]} 42. Kg2 {[%clk 0:01:13]}  Ne2 {[%clk 0:00:13]} 43. Re6 {[%clk 0:01:10]}  Ra2 {[%clk 0:00:11]} 44. Rxe5+ {[%clk 0:01:11]}  Kh6 {[%clk 0:00:09]} 45. Kf3 {[%clk 0:01:11]}  Nc1 {[%clk 0:00:06]} 46. Rd5 {[%clk 0:01:10]}  Ne2 {[%clk 0:00:04]} 47. c5 {[%clk 0:01:08]}  Ng1+ {[%clk 0:00:00]} 48. Kg4 {[%clk 0:01:08]} 1-0

[Event "December 12 Early 2023"]
[Site "https://www.chess.com"]
[Date "2023.12.12"]
[Round "4"]
[White "Batsiashvili, Nino"]
[Black "Bardyk, Artem"]
[Result "0-1"]
[Board "103"]
[TimeControl "180+1"]
[WhiteFideId "13602993"]
[BlackFideId "34349979"]
[WhiteElo "2525"]
[BlackElo "2761"]
[WhiteTeam "GEO"]
[BlackTeam "RUS"]
[WhiteClock "0:00:00"]
[BlackClock "0:00:39"]

1. d4 {[%clk 0:02:53]}  d5 {[%clk 0:02:57]} 2. c4 {[%clk 0:02:52]}  c6 {[%clk 0:02:56]} 3. Nf3 {[%clk 0:02:52]}  Nf6 {[%clk 0:02:56]} 4. g3 {[%clk 0:02:50]}  Bf5 {[%clk 0:02:52]} 5. Nc3 {[%clk 0:02:42]}  e6 {[%clk 0:02:47]} 6. Nh4 {[%clk 0:02:41]}  Be4 {[%clk 0:02:40]} 7. f3 {[%clk 0:02:35]}  Bg6 {[%clk 0:02:40]} 8. Qb3 {[%clk 0:02:33]}  Qb6 {[%clk 0:02:35]} 9. c5 {[%clk 0:02:30]}  Qxb3 {[%clk 0:02:33]} 10. axb3 {[%clk 0:02:31]}  a6 {[%clk 0:02:34]} 11. b4 {[%clk 0:02:31]}  Nbd7 {[%clk 0:02:33]} 12. b5 {[%clk 0:02:32]}  cxb5 {[%clk 0:02:33]} 13. Nxb5 {[%clk 0:02:31]}  Rc8 {[%clk 0:02:33]} 14. Nc3 {[%clk 0:02:28]}  Nb8 {[%clk 0:02:30]} 15. Nxg6 {[%clk 0:02:13]}  hxg6 {[%clk 0:02:30]} 16. e3 {[%clk 0:02:12]}  Nc6 {[%clk 0:02:28]} 17. Bd2 {[%clk 0:02:02]}  e5 {[%clk 0:02:24]} 18. Ne2 {[%clk 0:01:55]}  g5 {[%clk 0:02:15]} 19. Bc3 {[%clk 0:01:49]}  e4 {[%clk 0:02:13]} 20. f4 {[%clk 0:01:42]}  gxf4 {[%clk 0:02:07]} 21. gxf4 {[%clk 0:01:41]}  Ng4 {[%clk 0:02:02]} 22. Kd2 {[%clk 0:01:28]}  Nxh2 {[%clk 0:01:39]} 23. Bg2 {[%clk 0:01:23]}  Rh6 {[%clk 0:01:37]} 24. Kc2 {[%clk 0:01:16]}  Ng4 {[%clk 0:01:34]} 25. Bd2 {[%clk 0:01:13]}  f5 {[%clk 0:01:30]} 26. Ng3 {[%clk 0:01:10]}  g6 {[%clk 0:01:27]} 27. Rxh6 {[%clk 0:01:05]}  Bxh6 {[%clk 0:01:28]} 28. Bf1 {[%clk 0:01:02]}  Kf7 {[%clk 0:01:22]} 29. Be2 {[%clk 0:01:03]}  Nf6 {[%clk 0:01:21]} 30. b4 {[%clk 0:01:03]}  Bg7 {[%clk 0:01:09]} 31. b5 {[%clk 0:01:01]}  axb5 {[%clk 0:01:10]} 32. Bxb5 {[%clk 0:01:01]}  Ng4 {[%clk 0:01:10]} 33. Be2 {[%clk 0:00:44]}  Nxe3+ {[%clk 0:01:04]} 34. Bxe3 {[%clk 0:00:42]}  Nxd4+ {[%clk 0:00:52]} 35. Bxd4 {[%clk 0:00:40]}  Bxd4 {[%clk 0:00:53]} 36. Rd1 {[%clk 0:00:32]}  Rxc5+ {[%clk 0:00:52]} 37. Kb1 {[%clk 0:00:23]}  Bf6 {[%clk 0:00:50]} 38. Nf1 {[%clk 0:00:16]}  d4 {[%clk 0:00:40]} 39. Rc1 {[%clk 0:00:04]}  Rxc1+ {[%clk 0:00:33]} 40. Kxc1 {[%clk 0:00:05]}  d3 {[%clk 0:00:33]} 41. Bd1 {[%clk 0:00:05]}  Bd4 {[%clk 0:00:34]} 42. Kd2 {[%clk 0:00:04]}  Kf6 {[%clk 0:00:35]} 43. Ne3 {[%clk 0:00:04]}  Bxe3+ {[%clk 0:00:35]} 44. Kxe3 {[%clk 0:00:05]}  g5 {[%clk 0:00:36]} 45. fxg5+ {[%clk 0:00:04]}  Kxg5 {[%clk 0:00:37]} 46. Bb3 {[%clk 0:00:04]}  b5 {[%clk 0:00:37]} 47. Bd5 {[%clk 0:00:04]}  b4 {[%clk 0:00:37]} 48. Bb3 {[%clk 0:00:04]}  Kg4 {[%clk 0:00:36]} 49. Bd5 {[%clk 0:00:03]}  Kg3 {[%clk 0:00:36]} 50. Be6 {[%clk 0:00:03]}  f4+ {[%clk 0:00:37]} 51. Kxe4 {[%clk 0:00:03]}  d2 {[%clk 0:00:37]} 52. Bb3 {[%clk 0:00:03]}  f3 {[%clk 0:00:38]} 53. Ke3 {[%clk 0:00:03]}  f2 {[%clk 0:00:38]} 54. Ke2 {[%clk 0:00:02]}  Kg2 {[%clk 0:00:39]} 55. Bd5+ {[%clk 0:00:00]}  Kg1 {[%clk 0:00:39]} 0-1